[Event "Titled Tuesday Blitz August 15 Early 2023"]
[White "Gamayev, Oleg"]
[Black "Toktomushev, Teimur"]
[WhiteFideId "2802813"]
[BlackFideId "14176726"]
[WhiteElo "2605"]
[BlackElo "2439"]
[Result "0-1"]
[Round "9"]
[TimeControl "180+1"]
[Date "2023.08.15"]
[WhiteClock "0:02:18"]
[BlackClock "0:01:38"]
[Board "80"]

1. d3 {[%clk 0:02:56]}  d5 {[%clk 0:02:57]} 2. e4 {[%clk 0:02:56]}  dxe4 {[%clk 0:02:56]} 3. dxe4 {[%clk 0:02:57]}  Qxd1+ {[%clk 0:02:56]} 4. Kxd1 {[%clk 0:02:58]}  c6 {[%clk 0:02:51]} 5. Nf3 {[%clk 0:02:55]}  Bg4 {[%clk 0:02:50]} 6. Be2 {[%clk 0:02:55]}  Nd7 {[%clk 0:02:48]} 7. Nfd2 {[%clk 0:02:56]}  Bxe2+ {[%clk 0:02:47]} 8. Kxe2 {[%clk 0:02:57]}  O-O-O {[%clk 0:02:45]} 9. f3 {[%clk 0:02:58]}  g6 {[%clk 0:02:45]} 10. c3 {[%clk 0:02:59]}  Bh6 {[%clk 0:02:43]} 11. a4 {[%clk 0:02:59]}  f5 {[%clk 0:02:42]} 12. Na3 {[%clk 0:02:59]}  Ngf6 {[%clk 0:02:41]} 13. Nac4 {[%clk 0:02:59]}  Nc5 {[%clk 0:02:37]} 14. b4 {[%clk 0:02:55]}  Nd3 {[%clk 0:02:31]} 15. Nb3 {[%clk 0:02:49]}  Nxc1+ {[%clk 0:02:28]} 16. Nxc1 {[%clk 0:02:50]}  fxe4 {[%clk 0:02:29]} 17. Nb3 {[%clk 0:02:40]}  Nd5 {[%clk 0:02:13]} 18. fxe4 {[%clk 0:02:34]}  Nxc3+ {[%clk 0:02:14]} 19. Kf3 {[%clk 0:02:35]}  Rhf8+ {[%clk 0:02:09]} 20. Kg3 {[%clk 0:02:34]}  Nxe4+ {[%clk 0:02:02]} 21. Kh4 {[%clk 0:02:27]}  Bg5+ {[%clk 0:01:40]} 22. Kg4 {[%clk 0:02:19]}  h5+ {[%clk 0:01:40]} 23. Kh3 {[%clk 0:02:20]}  Nf2+ {[%clk 0:01:39]} 24. Kg3 {[%clk 0:02:19]}  Rd3+ {[%clk 0:01:40]} 25. Ne3 {[%clk 0:02:18]}  Rxe3# {[%clk 0:01:38]} 0-1


[Site "https://www.chess.com"]

[Event "Titled Tuesday Blitz August 15 Early 2023"]
[White "Budrewicz, Krzysztof"]
[Black "Bueno, Alfeu Junior Varela"]
[WhiteFideId "1127950"]
[BlackFideId "2108879"]
[WhiteElo "2583"]
[BlackElo "2442"]
[Result "0-1"]
[Round "9"]
[TimeControl "180+1"]
[Date "2023.08.15"]
[WhiteClock "0:01:57"]
[BlackClock "0:00:27"]
[Board "81"]

1. d4 {[%clk 0:03:00]}  e6 {[%clk 0:02:10]} 2. c4 {[%clk 0:03:00]}  f5 {[%clk 0:02:10]} 3. g3 {[%clk 0:03:00]}  Nf6 {[%clk 0:02:09]} 4. Bg2 {[%clk 0:03:01]}  Be7 {[%clk 0:02:09]} 5. Nh3 {[%clk 0:03:01]}  O-O {[%clk 0:02:08]} 6. O-O {[%clk 0:03:02]}  d6 {[%clk 0:02:08]} 7. Nc3 {[%clk 0:03:02]}  e5 {[%clk 0:02:02]} 8. Nd5 {[%clk 0:02:56]}  Nc6 {[%clk 0:01:59]} 9. Nxe7+ {[%clk 0:02:55]}  Qxe7 {[%clk 0:02:00]} 10. d5 {[%clk 0:02:54]}  Nd8 {[%clk 0:02:01]} 11. b3 {[%clk 0:02:54]}  Qe8 {[%clk 0:01:53]} 12. f4 {[%clk 0:02:54]}  Qh5 {[%clk 0:01:48]} 13. e3 {[%clk 0:02:53]}  Ng4 {[%clk 0:01:47]} 14. Qf3 {[%clk 0:02:44]}  Nf7 {[%clk 0:01:40]} 15. Bb2 {[%clk 0:02:44]}  Bd7 {[%clk 0:01:38]} 16. Rae1 {[%clk 0:02:43]}  Rae8 {[%clk 0:01:37]} 17. Re2 {[%clk 0:02:44]}  Re7 {[%clk 0:01:36]} 18. Rc2 {[%clk 0:02:39]}  Rfe8 {[%clk 0:01:35]} 19. fxe5 {[%clk 0:02:37]}  Nfxe5 {[%clk 0:01:34]} 20. Qe2 {[%clk 0:02:34]}  Ng6 {[%clk 0:01:11]} 21. Bd4 {[%clk 0:02:32]}  Qh6 {[%clk 0:01:08]} 22. c5 {[%clk 0:02:28]}  Nxe3 {[%clk 0:00:48]} 23. Bxe3 {[%clk 0:02:27]}  Rxe3 {[%clk 0:00:49]} 24. Qf2 {[%clk 0:02:25]}  Ne5 {[%clk 0:00:35]} 25. Qf4 {[%clk 0:02:18]}  Qxf4 {[%clk 0:00:33]} 26. Nxf4 {[%clk 0:02:18]}  Bb5 {[%clk 0:00:29]} 27. Rd1 {[%clk 0:02:14]}  Ng4 {[%clk 0:00:28]} 28. h3 {[%clk 0:01:57]}  Re1+ {[%clk 0:00:27]} 0-1


[Site "https://www.chess.com"]

[Event "Titled Tuesday Blitz August 15 Early 2023"]
[White "Herman, Daniel"]
[Black "Chor, Kevin"]
[WhiteFideId "30935008"]
[BlackFideId "2090740"]
[WhiteElo "2438"]
[BlackElo "2573"]
[Result "1-0"]
[Round "9"]
[TimeControl "180+1"]
[Date "2023.08.15"]
[WhiteClock "0:00:07"]
[BlackClock "0:00:00"]
[Board "82"]

1. c4 {[%clk 0:03:00]}  Nf6 {[%clk 0:02:59]} 2. Nc3 {[%clk 0:03:00]}  g6 {[%clk 0:02:59]} 3. e4 {[%clk 0:03:01]}  d6 {[%clk 0:02:58]} 4. d4 {[%clk 0:03:01]}  Bg7 {[%clk 0:02:58]} 5. Nf3 {[%clk 0:03:02]}  O-O {[%clk 0:02:59]} 6. h3 {[%clk 0:03:02]}  Na6 {[%clk 0:02:42]} 7. Be3 {[%clk 0:02:56]}  e5 {[%clk 0:02:36]} 8. d5 {[%clk 0:02:51]}  Nc5 {[%clk 0:02:21]} 9. Nd2 {[%clk 0:02:52]}  a5 {[%clk 0:02:19]} 10. g4 {[%clk 0:02:49]}  c6 {[%clk 0:02:17]} 11. Be2 {[%clk 0:02:38]}  Ne8 {[%clk 0:02:10]} 12. Rg1 {[%clk 0:02:31]}  Qh4 {[%clk 0:02:02]} 13. Qc2 {[%clk 0:02:08]}  f5 {[%clk 0:01:57]} 14. gxf5 {[%clk 0:02:07]}  gxf5 {[%clk 0:01:57]} 15. O-O-O {[%clk 0:02:02]}  f4 {[%clk 0:01:50]} 16. Bxc5 {[%clk 0:02:02]}  dxc5 {[%clk 0:01:51]} 17. Bg4 {[%clk 0:02:02]}  Qxf2 {[%clk 0:01:31]} 18. Rdf1 {[%clk 0:01:35]}  Qh4 {[%clk 0:01:29]} 19. Nf3 {[%clk 0:01:34]}  Qe7 {[%clk 0:01:27]} 20. Rg2 {[%clk 0:01:22]}  Kh8 {[%clk 0:01:06]} 21. Rfg1 {[%clk 0:01:21]}  Bh6 {[%clk 0:00:50]} 22. Na4 {[%clk 0:01:15]}  Nf6 {[%clk 0:00:30]} 23. Bxc8 {[%clk 0:01:12]}  Raxc8 {[%clk 0:00:29]} 24. Nc3 {[%clk 0:00:52]}  b5 {[%clk 0:00:25]} 25. dxc6 {[%clk 0:00:38]}  bxc4 {[%clk 0:00:20]} 26. Nd5 {[%clk 0:00:36]}  Nxd5 {[%clk 0:00:18]} 27. exd5 {[%clk 0:00:37]}  e4 {[%clk 0:00:13]} 28. Qc3+ {[%clk 0:00:37]}  Rf6 {[%clk 0:00:13]} 29. Re2 {[%clk 0:00:19]}  Bg7 {[%clk 0:00:05]} 30. Ne5 {[%clk 0:00:12]}  e3 {[%clk 0:00:02]} 31. Nf3 {[%clk 0:00:08]}  Rd6 {[%clk 0:00:00]} 32. Qxc4 {[%clk 0:00:07]} 1-0


[Site "https://www.chess.com"]

[Event "Titled Tuesday Blitz August 15 Early 2023"]
[White "ExchangeAB"]
[Black "Musovic, Armin"]
[BlackFideId "939935"]
[WhiteElo "2426"]
[BlackElo "2568"]
[Result "1-0"]
[Round "9"]
[TimeControl "180+1"]
[Date "2023.08.15"]
[WhiteClock "0:00:43"]
[BlackClock "0:00:05"]
[Board "83"]

1. d4 {[%clk 0:03:00]}  d5 {[%clk 0:02:57]} 2. Nc3 {[%clk 0:03:00]}  c5 {[%clk 0:02:56]} 3. e4 {[%clk 0:02:57]}  dxe4 {[%clk 0:02:56]} 4. d5 {[%clk 0:02:56]}  a6 {[%clk 0:02:56]} 5. Bf4 {[%clk 0:02:54]}  Nf6 {[%clk 0:02:55]} 6. f3 {[%clk 0:02:54]}  e6 {[%clk 0:02:54]} 7. dxe6 {[%clk 0:02:45]}  Qxd1+ {[%clk 0:02:51]} 8. Rxd1 {[%clk 0:02:46]}  Bxe6 {[%clk 0:02:51]} 9. fxe4 {[%clk 0:02:42]}  Nc6 {[%clk 0:02:42]} 10. Nd5 {[%clk 0:02:36]}  Bxd5 {[%clk 0:02:26]} 11. exd5 {[%clk 0:02:34]}  Nb4 {[%clk 0:02:21]} 12. c4 {[%clk 0:02:27]}  Nc2+ {[%clk 0:02:15]} 13. Kd2 {[%clk 0:02:21]}  Nd4 {[%clk 0:02:10]} 14. Re1+ {[%clk 0:02:17]}  Kd7 {[%clk 0:02:09]} 15. Nf3 {[%clk 0:02:10]}  Bd6 {[%clk 0:01:44]} 16. Ne5+ {[%clk 0:01:51]}  Bxe5 {[%clk 0:01:33]} 17. Bxe5 {[%clk 0:01:52]}  Rhe8 {[%clk 0:01:23]} 18. Bd3 {[%clk 0:01:47]}  Re7 {[%clk 0:00:41]} 19. Bxd4 {[%clk 0:01:44]}  cxd4 {[%clk 0:00:41]} 20. Bf5+ {[%clk 0:01:44]}  Ke8 {[%clk 0:00:37]} 21. Kd3 {[%clk 0:01:40]}  g6 {[%clk 0:00:18]} 22. Bh3 {[%clk 0:01:33]}  Re3+ {[%clk 0:00:16]} 23. Kxd4 {[%clk 0:01:28]}  Rxe1 {[%clk 0:00:16]} 24. Rxe1+ {[%clk 0:01:29]}  Kf8 {[%clk 0:00:16]} 25. b4 {[%clk 0:01:23]}  Rd8 {[%clk 0:00:15]} 26. a4 {[%clk 0:01:21]}  b5 {[%clk 0:00:12]} 27. axb5 {[%clk 0:00:58]}  axb5 {[%clk 0:00:12]} 28. Rf1 {[%clk 0:00:44]}  Kg7 {[%clk 0:00:11]} 29. Rxf6 {[%clk 0:00:44]}  Kxf6 {[%clk 0:00:11]} 30. c5 {[%clk 0:00:45]}  Ke7 {[%clk 0:00:10]} 31. d6+ {[%clk 0:00:43]}  Kf8 {[%clk 0:00:10]} 32. Kd5 {[%clk 0:00:43]}  h5 {[%clk 0:00:09]} 33. c6 {[%clk 0:00:43]}  Ra8 {[%clk 0:00:08]} 34. c7 {[%clk 0:00:43]}  g5 {[%clk 0:00:07]} 35. c8=Q+ {[%clk 0:00:43]}  Rxc8 {[%clk 0:00:05]} 36. Bxc8 {[%clk 0:00:43]} 1-0


[Site "https://www.chess.com"]

[Event "Titled Tuesday Blitz August 15 Early 2023"]
[White "Hajiyev, Kanan"]
[Black "Kozelov, Roman"]
[WhiteFideId "13404148"]
[BlackFideId "14133377"]
[WhiteElo "2536"]
[BlackElo "2407"]
[Result "0-1"]
[Round "9"]
[TimeControl "180+1"]
[Date "2023.08.15"]
[WhiteClock "0:00:09"]
[BlackClock "0:00:25"]
[Board "89"]

1. d4 {[%clk 0:03:00]}  Nf6 {[%clk 0:02:59]} 2. Nf3 {[%clk 0:03:01]}  e6 {[%clk 0:02:59]} 3. c4 {[%clk 0:03:01]}  b6 {[%clk 0:02:59]} 4. Nc3 {[%clk 0:03:02]}  Bb7 {[%clk 0:03:00]} 5. a3 {[%clk 0:03:01]}  d5 {[%clk 0:02:58]} 6. cxd5 {[%clk 0:03:01]}  Nxd5 {[%clk 0:02:58]} 7. Qc2 {[%clk 0:03:01]}  Be7 {[%clk 0:02:58]} 8. e4 {[%clk 0:03:00]}  Nxc3 {[%clk 0:02:57]} 9. bxc3 {[%clk 0:03:01]}  O-O {[%clk 0:02:57]} 10. Bd3 {[%clk 0:03:02]}  c5 {[%clk 0:02:57]} 11. O-O {[%clk 0:03:02]}  Nd7 {[%clk 0:02:56]} 12. e5 {[%clk 0:03:02]}  h6 {[%clk 0:02:55]} 13. Qe2 {[%clk 0:02:58]}  cxd4 {[%clk 0:02:54]} 14. cxd4 {[%clk 0:02:57]}  Re8 {[%clk 0:02:52]} 15. Bf4 {[%clk 0:02:56]}  Nf8 {[%clk 0:02:52]} 16. Rfd1 {[%clk 0:02:54]}  Rc8 {[%clk 0:02:51]} 17. Bb5 {[%clk 0:02:51]}  Bc6 {[%clk 0:02:49]} 18. Ba6 {[%clk 0:02:50]}  Rc7 {[%clk 0:02:48]} 19. Rac1 {[%clk 0:02:41]}  Qd5 {[%clk 0:02:44]} 20. Bc4 {[%clk 0:02:24]}  Qe4 {[%clk 0:02:43]} 21. Be3 {[%clk 0:02:14]}  Rec8 {[%clk 0:02:31]} 22. Bd3 {[%clk 0:02:13]}  Qd5 {[%clk 0:02:30]} 23. Ba6 {[%clk 0:02:14]}  Bb7 {[%clk 0:02:30]} 24. Bxb7 {[%clk 0:02:00]}  Qxb7 {[%clk 0:02:30]} 25. a4 {[%clk 0:01:57]}  Qd5 {[%clk 0:02:27]} 26. Qb2 {[%clk 0:01:49]}  Nd7 {[%clk 0:02:09]} 27. h3 {[%clk 0:01:48]}  a5 {[%clk 0:02:09]} 28. Nd2 {[%clk 0:01:43]}  Bb4 {[%clk 0:02:06]} 29. Nf3 {[%clk 0:01:35]}  b5 {[%clk 0:02:05]} 30. axb5 {[%clk 0:01:33]}  Qxb5 {[%clk 0:02:05]} 31. Bd2 {[%clk 0:01:31]}  Nb6 {[%clk 0:01:58]} 32. Rxc7 {[%clk 0:01:23]}  Rxc7 {[%clk 0:01:58]} 33. Qb3 {[%clk 0:01:22]}  Nd5 {[%clk 0:01:55]} 34. Rb1 {[%clk 0:01:19]}  Rc4 {[%clk 0:01:52]} 35. Be1 {[%clk 0:01:18]}  a4 {[%clk 0:01:45]} 36. Qd3 {[%clk 0:01:17]}  Qc6 {[%clk 0:01:38]} 37. Bxb4 {[%clk 0:01:13]}  Nxb4 {[%clk 0:01:25]} 38. Qd2 {[%clk 0:01:13]}  Nd5 {[%clk 0:01:20]} 39. Qa5 {[%clk 0:01:11]}  Rc1+ {[%clk 0:01:13]} 40. Rxc1 {[%clk 0:01:11]}  Qxc1+ {[%clk 0:01:14]} 41. Kh2 {[%clk 0:01:12]}  a3 {[%clk 0:01:12]} 42. Nd2 {[%clk 0:01:04]}  Qb2 {[%clk 0:01:05]} 43. Nc4 {[%clk 0:01:02]}  Qxf2 {[%clk 0:00:59]} 44. Qxa3 {[%clk 0:00:57]}  Qxd4 {[%clk 0:00:57]} 45. Qa2 {[%clk 0:00:45]}  Qf4+ {[%clk 0:00:53]} 46. Kh1 {[%clk 0:00:43]}  Nc3 {[%clk 0:00:53]} 47. Qa8+ {[%clk 0:00:24]}  Kh7 {[%clk 0:00:52]} 48. Nd6 {[%clk 0:00:25]}  Ne2 {[%clk 0:00:48]} 49. Qe4+ {[%clk 0:00:21]}  Qxe4 {[%clk 0:00:48]} 50. Nxe4 {[%clk 0:00:22]}  Kg6 {[%clk 0:00:47]} 51. g4 {[%clk 0:00:21]}  Nd4 {[%clk 0:00:46]} 52. Kg2 {[%clk 0:00:21]}  Nc6 {[%clk 0:00:46]} 53. Kg3 {[%clk 0:00:21]}  Nxe5 {[%clk 0:00:47]} 54. Nd6 {[%clk 0:00:21]}  Kf6 {[%clk 0:00:45]} 55. Ne8+ {[%clk 0:00:18]}  Kg6 {[%clk 0:00:43]} 56. h4 {[%clk 0:00:19]}  Kh7 {[%clk 0:00:42]} 57. Nd6 {[%clk 0:00:17]}  Kg8 {[%clk 0:00:42]} 58. h5 {[%clk 0:00:17]}  Kf8 {[%clk 0:00:42]} 59. Kf4 {[%clk 0:00:18]}  Nd3+ {[%clk 0:00:40]} 60. Ke3 {[%clk 0:00:19]}  Nc5 {[%clk 0:00:40]} 61. Kf4 {[%clk 0:00:18]}  Ke7 {[%clk 0:00:40]} 62. Nc8+ {[%clk 0:00:19]}  Kf6 {[%clk 0:00:39]} 63. Nd6 {[%clk 0:00:19]}  e5+ {[%clk 0:00:39]} 64. Kg3 {[%clk 0:00:18]}  Ne6 {[%clk 0:00:37]} 65. Ne4+ {[%clk 0:00:18]}  Ke7 {[%clk 0:00:37]} 66. Nc3 {[%clk 0:00:14]}  Ng5 {[%clk 0:00:37]} 67. Nd5+ {[%clk 0:00:13]}  Ke6 {[%clk 0:00:37]} 68. Ne3 {[%clk 0:00:14]}  g6 {[%clk 0:00:36]} 69. hxg6 {[%clk 0:00:14]}  fxg6 {[%clk 0:00:37]} 70. Nc4 {[%clk 0:00:14]}  Kf6 {[%clk 0:00:35]} 71. Nd6 {[%clk 0:00:14]}  Ke6 {[%clk 0:00:34]} 72. Nc4 {[%clk 0:00:13]}  Kd5 {[%clk 0:00:33]} 73. Ne3+ {[%clk 0:00:11]}  Kd4 {[%clk 0:00:33]} 74. Ng2 {[%clk 0:00:12]}  Kd3 {[%clk 0:00:29]} 75. Nh4 {[%clk 0:00:12]}  Ne4+ {[%clk 0:00:30]} 76. Kf3 {[%clk 0:00:11]}  Nd2+ {[%clk 0:00:25]} 77. Kf2 {[%clk 0:00:10]}  e4 {[%clk 0:00:25]} 78. Nxg6 {[%clk 0:00:09]}  e3+ {[%clk 0:00:26]} 79. Ke1 {[%clk 0:00:09]}  Nf3+ {[%clk 0:00:25]} 80. Kf1 {[%clk 0:00:09]}  e2+ {[%clk 0:00:26]} 81. Kf2 {[%clk 0:00:10]}  e1=Q+ {[%clk 0:00:26]} 82. Kxf3 {[%clk 0:00:09]}  Qe4+ {[%clk 0:00:25]} 0-1


[Site "https://www.chess.com"]

[Event "Titled Tuesday Blitz August 15 Early 2023"]
[White "Ovezdurdyyeva, Jemal"]
[Black "Mogirzan, Matei-Valeriu"]
[WhiteFideId "14001888"]
[BlackFideId "1257455"]
[WhiteElo "2390"]
[BlackElo "2529"]
[Result "0-1"]
[Round "9"]
[TimeControl "180+1"]
[Date "2023.08.15"]
[WhiteClock "0:00:01"]
[BlackClock "0:00:57"]
[Board "93"]

1. e4 {[%clk 0:03:00]}  e5 {[%clk 0:02:58]} 2. Nf3 {[%clk 0:03:00]}  Nf6 {[%clk 0:02:58]} 3. Nxe5 {[%clk 0:02:59]}  Nc6 {[%clk 0:02:58]} 4. Nxc6 {[%clk 0:02:55]}  dxc6 {[%clk 0:02:59]} 5. d4 {[%clk 0:02:52]}  Nxe4 {[%clk 0:02:58]} 6. Bd3 {[%clk 0:02:49]}  f5 {[%clk 0:02:58]} 7. O-O {[%clk 0:02:28]}  Bd6 {[%clk 0:02:57]} 8. f3 {[%clk 0:02:18]}  Qh4 {[%clk 0:02:52]} 9. f4 {[%clk 0:02:08]}  Bd7 {[%clk 0:02:41]} 10. Qe1 {[%clk 0:02:02]}  Qe7 {[%clk 0:02:34]} 11. Nd2 {[%clk 0:01:54]}  O-O-O {[%clk 0:02:31]} 12. Nxe4 {[%clk 0:01:53]}  fxe4 {[%clk 0:02:32]} 13. Qxe4 {[%clk 0:01:53]}  Qf6 {[%clk 0:02:28]} 14. Be3 {[%clk 0:01:47]}  Bg4 {[%clk 0:02:22]} 15. f5 {[%clk 0:01:33]}  h5 {[%clk 0:02:13]} 16. d5 {[%clk 0:01:11]}  cxd5 {[%clk 0:02:01]} 17. Qa4 {[%clk 0:01:09]}  a6 {[%clk 0:01:40]} 18. Bf4 {[%clk 0:00:53]}  Bc5+ {[%clk 0:01:33]} 19. Kh1 {[%clk 0:00:52]}  h4 {[%clk 0:01:32]} 20. b4 {[%clk 0:00:38]}  Bd4 {[%clk 0:01:30]} 21. Rae1 {[%clk 0:00:37]}  h3 {[%clk 0:01:27]} 22. b5 {[%clk 0:00:26]}  hxg2+ {[%clk 0:01:16]} 23. Kxg2 {[%clk 0:00:27]}  Rxh2+ {[%clk 0:01:02]} 24. Bxh2 {[%clk 0:00:20]}  Qh4 {[%clk 0:01:00]} 25. Rh1 {[%clk 0:00:01]}  Qh3# {[%clk 0:00:57]} 0-1


[Site "https://www.chess.com"]

[Event "Titled Tuesday Blitz August 15 Early 2023"]
[White "Nosacheva, Mariya"]
[Black "Camilla_Lee"]
[WhiteFideId "34111422"]
[WhiteElo "2385"]
[BlackElo "2514"]
[Result "1/2-1/2"]
[Round "9"]
[TimeControl "180+1"]
[Date "2023.08.15"]
[WhiteClock "0:00:12"]
[BlackClock "0:00:03"]
[Board "94"]

1. e4 {[%clk 0:03:00]}  e5 {[%clk 0:02:58]} 2. Nf3 {[%clk 0:03:00]}  Nc6 {[%clk 0:02:59]} 3. Bc4 {[%clk 0:03:00]}  Nf6 {[%clk 0:02:59]} 4. d4 {[%clk 0:02:56]}  exd4 {[%clk 0:02:58]} 5. e5 {[%clk 0:02:55]}  d5 {[%clk 0:02:58]} 6. Bb5 {[%clk 0:02:54]}  Ne4 {[%clk 0:02:58]} 7. Nxd4 {[%clk 0:02:53]}  Bd7 {[%clk 0:02:58]} 8. Bxc6 {[%clk 0:02:51]}  bxc6 {[%clk 0:02:57]} 9. O-O {[%clk 0:02:50]}  Bc5 {[%clk 0:02:57]} 10. c3 {[%clk 0:02:46]}  O-O {[%clk 0:02:51]} 11. f3 {[%clk 0:02:45]}  Ng5 {[%clk 0:02:49]} 12. f4 {[%clk 0:02:45]}  Ne4 {[%clk 0:02:48]} 13. Nd2 {[%clk 0:02:41]}  f6 {[%clk 0:02:45]} 14. Nxe4 {[%clk 0:02:39]}  dxe4 {[%clk 0:02:46]} 15. Qb3+ {[%clk 0:02:32]}  Kh8 {[%clk 0:02:44]} 16. e6 {[%clk 0:02:25]}  Bc8 {[%clk 0:02:36]} 17. f5 {[%clk 0:02:22]}  Qd5 {[%clk 0:02:24]} 18. Be3 {[%clk 0:02:12]}  Ba6 {[%clk 0:02:22]} 19. Rf2 {[%clk 0:02:00]}  Bd3 {[%clk 0:01:37]} 20. Qd1 {[%clk 0:01:46]}  Bd6 {[%clk 0:01:14]} 21. Qg4 {[%clk 0:01:33]}  c5 {[%clk 0:01:11]} 22. Ne2 {[%clk 0:01:30]}  Bxe2 {[%clk 0:00:38]} 23. Rxe2 {[%clk 0:01:25]}  Rfd8 {[%clk 0:00:33]} 24. Rf2 {[%clk 0:01:18]}  c4 {[%clk 0:00:33]} 25. Qh4 {[%clk 0:01:13]}  Rab8 {[%clk 0:00:31]} 26. Bd4 {[%clk 0:00:58]}  Bc5 {[%clk 0:00:31]} 27. Bxc5 {[%clk 0:00:52]}  Qxc5 {[%clk 0:00:32]} 28. Qxe4 {[%clk 0:00:47]}  Rxb2 {[%clk 0:00:33]} 29. Qf3 {[%clk 0:00:39]}  h6 {[%clk 0:00:19]} 30. Rf1 {[%clk 0:00:35]}  Rdd2 {[%clk 0:00:16]} 31. g3 {[%clk 0:00:27]}  Rxa2 {[%clk 0:00:09]} 32. Qa8+ {[%clk 0:00:11]}  Kh7 {[%clk 0:00:08]} 33. Qe8 {[%clk 0:00:11]}  Rxf2 {[%clk 0:00:02]} 34. Qg6+ {[%clk 0:00:11]}  Kg8 {[%clk 0:00:03]} 35. Qf7+ {[%clk 0:00:11]}  Kh7 {[%clk 0:00:03]} 36. Qg6+ {[%clk 0:00:12]}  Kg8 {[%clk 0:00:03]} 37. Qf7+ {[%clk 0:00:12]}  Kh7 {[%clk 0:00:03]} 38. Qg6+ {[%clk 0:00:12]} 1/2-1/2


[Site "https://www.chess.com"]

[Event "Titled Tuesday Blitz August 15 Early 2023"]
[White "FunnyDuck66"]
[Black "Lopez Gracia, Fernando"]
[BlackFideId "2207184"]
[WhiteElo "2500"]
[BlackElo "2360"]
[Result "1-0"]
[Round "9"]
[TimeControl "180+1"]
[Date "2023.08.15"]
[WhiteClock "0:00:06"]
[BlackClock "0:00:00"]
[Board "97"]

1. d4 {[%clk 0:02:56]}  Nf6 {[%clk 0:02:30]} 2. Nf3 {[%clk 0:02:55]}  e6 {[%clk 0:02:27]} 3. Bg5 {[%clk 0:02:53]}  d5 {[%clk 0:02:24]} 4. e3 {[%clk 0:02:48]}  Nbd7 {[%clk 0:02:24]} 5. Bd3 {[%clk 0:02:47]}  Be7 {[%clk 0:02:25]} 6. O-O {[%clk 0:02:47]}  O-O {[%clk 0:02:25]} 7. Nbd2 {[%clk 0:02:47]}  b6 {[%clk 0:02:25]} 8. c3 {[%clk 0:02:41]}  Bb7 {[%clk 0:02:26]} 9. Ne5 {[%clk 0:02:42]}  c5 {[%clk 0:02:25]} 10. f4 {[%clk 0:02:42]}  Ne4 {[%clk 0:02:22]} 11. Bxe7 {[%clk 0:02:42]}  Qxe7 {[%clk 0:02:22]} 12. Bxe4 {[%clk 0:02:40]}  dxe4 {[%clk 0:02:22]} 13. Qc2 {[%clk 0:02:26]}  f5 {[%clk 0:02:14]} 14. Nxd7 {[%clk 0:02:26]}  Qxd7 {[%clk 0:02:14]} 15. Nc4 {[%clk 0:02:27]}  cxd4 {[%clk 0:02:07]} 16. exd4 {[%clk 0:02:24]}  Rac8 {[%clk 0:02:04]} 17. Ne5 {[%clk 0:02:23]}  Qd5 {[%clk 0:02:04]} 18. Qb3 {[%clk 0:02:05]}  Rfd8 {[%clk 0:01:53]} 19. Rae1 {[%clk 0:01:56]}  Ba6 {[%clk 0:01:50]} 20. Rf2 {[%clk 0:01:54]}  Bc4 {[%clk 0:01:42]} 21. Qa3 {[%clk 0:01:48]}  Rc7 {[%clk 0:01:33]} 22. Re3 {[%clk 0:01:40]}  Bxa2 {[%clk 0:01:25]} 23. g4 {[%clk 0:01:11]}  Qb3 {[%clk 0:01:08]} 24. Qa6 {[%clk 0:00:51]}  Rd5 {[%clk 0:00:52]} 25. gxf5 {[%clk 0:00:48]}  exf5 {[%clk 0:00:50]} 26. Qe2 {[%clk 0:00:31]}  Qb5 {[%clk 0:00:38]} 27. Qh5 {[%clk 0:00:24]}  g6 {[%clk 0:00:30]} 28. Qh6 {[%clk 0:00:23]}  Rd6 {[%clk 0:00:24]} 29. h4 {[%clk 0:00:21]}  Rg7 {[%clk 0:00:23]} 30. Rg2 {[%clk 0:00:20]}  Qe8 {[%clk 0:00:20]} 31. h5 {[%clk 0:00:20]}  Bb1 {[%clk 0:00:17]} 32. hxg6 {[%clk 0:00:18]}  hxg6 {[%clk 0:00:16]} 33. Rh3 {[%clk 0:00:16]}  Kf8 {[%clk 0:00:03]} 34. Qg5 {[%clk 0:00:08]}  Ba2 {[%clk 0:00:02]} 35. Qh6 {[%clk 0:00:07]}  Bg8 {[%clk 0:00:02]} 36. Qg5 {[%clk 0:00:08]}  Qe7 {[%clk 0:00:02]} 37. Qh6 {[%clk 0:00:07]}  Qf6 {[%clk 0:00:03]} 38. Rhg3 {[%clk 0:00:07]}  e3 {[%clk 0:00:00]} 39. Rxg6 {[%clk 0:00:06]} 1-0


[Site "https://www.chess.com"]